[Event "Early-Titled-Tuesday-Blitz-March-19-2024"]
[Site "Chess.com"]
[Date "2024.03.19"]
[Round "7"]
[White "ActorXu"]
[Black "Goryachkina"]
[Result "1/2-1/2"]
[WhiteElo "2826"]
[BlackElo "2651"]
[TimeControl "180+1"]
[EndTime "9:21:35 PDT"]
[Termination "Game drawn by repetition"]

1. e4 {[%clk 0:02:53]} 1... e6 {[%clk 0:02:59.4]} 2. d3 {[%clk 0:02:53]} 2... d5
{[%clk 0:02:59]} 3. Nd2 {[%clk 0:02:53.7]} 3... Nc6 {[%clk 0:02:56.7]} 4. Ngf3
{[%clk 0:02:52.1]} 4... Nf6 {[%clk 0:02:56.6]} 5. g3 {[%clk 0:02:52]} 5... e5
{[%clk 0:02:55.7]} 6. Bg2 {[%clk 0:02:50.2]} 6... dxe4 {[%clk 0:02:51.4]} 7.
dxe4 {[%clk 0:02:49.7]} 7... Bc5 {[%clk 0:02:50.7]} 8. O-O {[%clk 0:02:48.8]}
8... O-O {[%clk 0:02:49.8]} 9. c3 {[%clk 0:02:48.7]} 9... a5 {[%clk 0:02:49.2]}
10. Qc2 {[%clk 0:02:38]} 10... h6 {[%clk 0:02:44.1]} 11. h3 {[%clk 0:02:34.6]}
11... Qe7 {[%clk 0:02:38.2]} 12. Nc4 {[%clk 0:02:32.9]} 12... Be6 {[%clk
0:02:23.5]} 13. Ne3 {[%clk 0:02:16.3]} 13... Rfd8 {[%clk 0:02:22.7]} 14. Nh4
{[%clk 0:02:08.2]} 14... a4 {[%clk 0:02:11]} 15. Nef5 {[%clk 0:02:07.8]} 15...
Qf8 {[%clk 0:02:10.3]} 16. Be3 {[%clk 0:02:00]} 16... Bxe3 {[%clk 0:02:06]} 17.
Nxe3 {[%clk 0:01:57.2]} 17... Qc5 {[%clk 0:02:03]} 18. Kh2 {[%clk 0:01:55]}
18... Rd7 {[%clk 0:01:50.7]} 19. b4 {[%clk 0:01:46.4]} 19... axb3 {[%clk
0:01:43.4]} 20. axb3 {[%clk 0:01:46.6]} 20... Rad8 {[%clk 0:01:42.9]} 21. b4
{[%clk 0:01:42.6]} 21... Qb5 {[%clk 0:01:26.1]} 22. Rfd1 {[%clk 0:01:42.2]}
22... Ne7 {[%clk 0:00:56.4]} 23. Ra5 {[%clk 0:01:32.3]} 23... Qb6 {[%clk
0:00:55.1]} 24. Rxd7 {[%clk 0:01:26.9]} 24... Nxd7 {[%clk 0:00:50]} 25. Nhf5
{[%clk 0:01:22]} 25... Bxf5 {[%clk 0:00:40.6]} 26. exf5 {[%clk 0:01:21.2]} 26...
c6 {[%clk 0:00:39.6]} 27. Qe4 {[%clk 0:01:08.4]} 27... Qc7 {[%clk 0:00:38.4]}
28. Ng4 {[%clk 0:01:01.2]} 28... b6 {[%clk 0:00:32.3]} 29. Ra1 {[%clk
0:00:53.2]} 29... Nf6 {[%clk 0:00:24.5]} 30. Nxf6+ {[%clk 0:00:50.6]} 30... gxf6
{[%clk 0:00:25.4]} 31. Qh4 {[%clk 0:00:41.1]} 31... Kg7 {[%clk 0:00:24.2]} 32.
Re1 {[%clk 0:00:39.9]} 32... Rd2 {[%clk 0:00:14.8]} 33. Re4 {[%clk 0:00:37.6]}
33... Ng8 {[%clk 0:00:07.6]} 34. Rg4+ {[%clk 0:00:29.7]} 34... Kf8 {[%clk
0:00:07.9]} 35. Rc4 {[%clk 0:00:15]} 35... Rxf2 {[%clk 0:00:05.5]} 36. Qe4
{[%clk 0:00:15.7]} 36... Qd6 {[%clk 0:00:04.3]} 37. Qxc6 {[%clk 0:00:13.9]}
37... Qxc6 {[%clk 0:00:04.2]} 38. Rxc6 {[%clk 0:00:14.1]} 38... Ne7 {[%clk
0:00:04.1]} 39. Rxb6 {[%clk 0:00:12.7]} 39... Nxf5 {[%clk 0:00:04.3]} 40. Kg1
{[%clk 0:00:11]} 40... Rc2 {[%clk 0:00:03.9]} 41. Be4 {[%clk 0:00:09]} 41...
Rc1+ {[%clk 0:00:04.1]} 42. Kf2 {[%clk 0:00:09.4]} 42... Ne7 {[%clk 0:00:03.9]}
43. Rxf6 {[%clk 0:00:09.5]} 43... Kg7 {[%clk 0:00:04]} 44. Rf3 {[%clk
0:00:09.7]} 44... f5 {[%clk 0:00:03.5]} 45. Bxf5 {[%clk 0:00:09.7]} 45... Nxf5
{[%clk 0:00:03.7]} 46. Rxf5 {[%clk 0:00:10.1]} 46... Rc2+ {[%clk 0:00:03.2]} 47.
Kf3 {[%clk 0:00:02.7]} 47... Rxc3+ {[%clk 0:00:03.7]} 48. Kf2 {[%clk 0:00:02.2]}
48... Rb3 {[%clk 0:00:03.9]} 49. Rxe5 {[%clk 0:00:02.1]} 49... Rxb4 {[%clk
0:00:04.5]} 50. Kf3 {[%clk 0:00:02.3]} 50... Rb3+ {[%clk 0:00:05]} 51. Kf4
{[%clk 0:00:02.9]} 51... Rc3 {[%clk 0:00:05.3]} 52. Re4 {[%clk 0:00:03.4]} 52...
Kg6 {[%clk 0:00:05.1]} 53. Ra4 {[%clk 0:00:04.1]} 53... Rb3 {[%clk 0:00:04.8]}
54. Ra6+ {[%clk 0:00:04.5]} 54... Kg7 {[%clk 0:00:05.3]} 55. Kg4 {[%clk
0:00:03.8]} 55... Rb4+ {[%clk 0:00:05.6]} 56. Kh5 {[%clk 0:00:04.2]} 56... Rb5+
{[%clk 0:00:06.2]} 57. Kh4 {[%clk 0:00:04.6]} 57... Rb4+ {[%clk 0:00:06.6]} 58.
g4 {[%clk 0:00:05.3]} 58... Rb5 {[%clk 0:00:07.2]} 59. Re6 {[%clk 0:00:05.6]}
59... Ra5 {[%clk 0:00:07.5]} 60. Kg3 {[%clk 0:00:05.6]} 60... Ra3+ {[%clk
0:00:07.4]} 61. Kh4 {[%clk 0:00:06.1]} 61... Ra5 {[%clk 0:00:07.9]} 62. Re3
{[%clk 0:00:06.3]} 62... Rb5 {[%clk 0:00:08.2]} 63. Kg3 {[%clk 0:00:06.9]} 63...
Rb4 {[%clk 0:00:08.1]} 64. Kf3 {[%clk 0:00:06.2]} 64... Ra4 {[%clk 0:00:08.3]}
65. Re4 {[%clk 0:00:06.4]} 65... Ra3+ {[%clk 0:00:08.9]} 66. Re3 {[%clk
0:00:06.9]} 66... Ra4 {[%clk 0:00:09.4]} 67. h4 {[%clk 0:00:07.2]} 67... Kg6
{[%clk 0:00:09.1]} 68. Re6+ {[%clk 0:00:07]} 68... Kg7 {[%clk 0:00:09]} 69. Re4
{[%clk 0:00:07.7]} 69... Ra5 {[%clk 0:00:08.8]} 70. Kf4 {[%clk 0:00:08.2]} 70...
Rb5 {[%clk 0:00:09.3]} 71. Re5 {[%clk 0:00:08.3]} 71... Rb1 {[%clk 0:00:09.5]}
72. Re7+ {[%clk 0:00:05]} 72... Kf6 {[%clk 0:00:09.5]} 73. Re3 {[%clk 0:00:05]}
73... Rb4+ {[%clk 0:00:08.6]} 74. Re4 {[%clk 0:00:04.9]} 74... Rb1 {[%clk
0:00:09]} 75. Rc4 {[%clk 0:00:04.9]} 75... Rf1+ {[%clk 0:00:08.9]} 76. Kg3
{[%clk 0:00:05.4]} 76... Rg1+ {[%clk 0:00:09.2]} 77. Kf2 {[%clk 0:00:05.9]}
77... Rh1 {[%clk 0:00:08.8]} 78. Rc6+ {[%clk 0:00:05.4]} 78... Kg7 {[%clk
0:00:08.7]} 79. Kg3 {[%clk 0:00:05.4]} 79... Rg1+ {[%clk 0:00:08.4]} 80. Kf3
{[%clk 0:00:05.5]} 80... Rf1+ {[%clk 0:00:08.9]} 81. Kg2 {[%clk 0:00:05.6]}
81... Ra1 {[%clk 0:00:08.2]} 82. Re6 {[%clk 0:00:03.9]} 82... Ra3 {[%clk
0:00:08.1]} 83. Kf2 {[%clk 0:00:03.9]} 83... Rb3 {[%clk 0:00:08.2]} 84. Re3
{[%clk 0:00:03.9]} 84... Rb4 {[%clk 0:00:08.6]} 85. Kf3 {[%clk 0:00:04.5]} 85...
Kg6 {[%clk 0:00:09]} 86. Re4 {[%clk 0:00:04.8]} 86... Rb1 {[%clk 0:00:08.3]} 87.
Re6+ {[%clk 0:00:04.2]} 87... Kg7 {[%clk 0:00:08.4]} 88. Kf4 {[%clk 0:00:03.8]}
88... Rf1+ {[%clk 0:00:08.2]} 89. Kg3 {[%clk 0:00:03.1]} 89... Rg1+ {[%clk
0:00:08.5]} 90. Kh3 {[%clk 0:00:03.3]} 90... Rh1+ {[%clk 0:00:08.7]} 91. Kg3
{[%clk 0:00:03.5]} 91... Rg1+ {[%clk 0:00:09.2]} 92. Kf3 {[%clk 0:00:03.9]}
92... Rh1 {[%clk 0:00:08.6]} 93. Kg3 {[%clk 0:00:03]} 93... Rg1+ {[%clk
0:00:08.9]} 1/2-1/2

[Event "Early-Titled-Tuesday-Blitz-March-19-2024"]
[Site "Chess.com"]
[Date "2024.03.19"]
[Round "8"]
[White "SlavenPastar"]
[Black "Pragmatist237"]
[Result "1-0"]
[WhiteElo "2558"]
[BlackElo "2332"]
[TimeControl "180+1"]
[EndTime "9:24:09 PDT"]
[Termination "SlavenPastar won by resignation"]

1. b3 {[%clk 0:03:00.9]} 1... e5 {[%clk 0:02:53.3]} 2. Bb2 {[%clk 0:03:01.5]}
2... Nc6 {[%clk 0:02:50.9]} 3. Nf3 {[%clk 0:03:02.2]} 3... d6 {[%clk 0:02:48.8]}
4. d4 {[%clk 0:03:02.4]} 4... e4 {[%clk 0:02:49]} 5. d5 {[%clk 0:03:02.3]} 5...
exf3 {[%clk 0:02:46.9]} 6. dxc6 {[%clk 0:03:02.3]} 6... bxc6 {[%clk 0:02:47.2]}
7. gxf3 {[%clk 0:03:01.2]} 7... Nf6 {[%clk 0:02:47.6]} 8. Qd4 {[%clk 0:02:59.7]}
8... d5 {[%clk 0:02:44.7]} 9. Nc3 {[%clk 0:02:53.1]} 9... Bf5 {[%clk 0:02:39.4]}
10. O-O-O {[%clk 0:02:52.3]} 10... Bg6 {[%clk 0:02:29.2]} 11. e4 {[%clk
0:02:47.3]} 11... c5 {[%clk 0:02:00]} 12. Qe5+ {[%clk 0:02:42]} 12... Qe7 {[%clk
0:02:00]} 13. Bb5+ {[%clk 0:02:41.3]} 13... Nd7 {[%clk 0:01:58]} 14. Qxc7 {[%clk
0:02:37]} 14... Rd8 {[%clk 0:01:54]} 15. Rxd5 {[%clk 0:02:35.2]} 1-0

[Event "Early-Titled-Tuesday-Blitz-March-19-2024"]
[Site "Chess.com"]
[Date "2024.03.19"]
[Round "8"]
[White "bobo_panda"]
[Black "aljado"]
[Result "1-0"]
[WhiteElo "2352"]
[BlackElo "2120"]
[TimeControl "180+1"]
[EndTime "9:24:12 PDT"]
[Termination "bobo_panda won by resignation"]

1. e4 {[%clk 0:03:00.9]} 1... c5 {[%clk 0:02:59.7]} 2. Nf3 {[%clk 0:03:00.4]}
2... e6 {[%clk 0:02:59.7]} 3. d4 {[%clk 0:03:01]} 3... cxd4 {[%clk 0:02:59.6]}
4. Nxd4 {[%clk 0:03:01.9]} 4... a6 {[%clk 0:02:59.8]} 5. c4 {[%clk 0:03:02]}
5... Qc7 {[%clk 0:02:59.3]} 6. Nc3 {[%clk 0:03:01.7]} 6... Nf6 {[%clk
0:02:58.5]} 7. a3 {[%clk 0:03:01.7]} 7... Nc6 {[%clk 0:02:55.9]} 8. Be3 {[%clk
0:03:00.7]} 8... Ne5 {[%clk 0:02:50.5]} 9. Rc1 {[%clk 0:02:59.1]} 9... Be7
{[%clk 0:02:40.6]} 10. Be2 {[%clk 0:02:57.7]} 10... O-O {[%clk 0:02:39.3]} 11.
f4 {[%clk 0:02:51.2]} 11... Nc6 {[%clk 0:02:38.1]} 12. O-O {[%clk 0:02:49.6]}
12... Nxd4 {[%clk 0:02:33.2]} 13. Bxd4 {[%clk 0:02:49.2]} 13... Bc5 {[%clk
0:02:31.3]} 14. b4 {[%clk 0:02:49]} 14... Bxd4+ {[%clk 0:02:29.9]} 15. Qxd4
{[%clk 0:02:49.9]} 15... d6 {[%clk 0:02:29.6]} 16. Rfd1 {[%clk 0:02:48.9]} 16...
Rd8 {[%clk 0:02:07.5]} 17. e5 {[%clk 0:02:45.8]} 17... Ne8 {[%clk 0:02:02.8]}
18. Ne4 {[%clk 0:02:45.9]} 18... d5 {[%clk 0:02:00.1]} 19. cxd5 {[%clk
0:02:45.9]} 19... Rxd5 {[%clk 0:01:54.8]} 20. Rxc7 {[%clk 0:02:44.4]} 20... Rxd4
{[%clk 0:01:54]} 21. Rxd4 {[%clk 0:02:45.2]} 21... Nxc7 {[%clk 0:01:53.7]} 22.
Rd8+ {[%clk 0:02:45.7]} 1-0

[Event "Early-Titled-Tuesday-Blitz-March-19-2024"]
[Site "Chess.com"]
[Date "2024.03.19"]
[Round "8"]
[White "Massakru"]
[Black "rikchessmx"]
[Result "1-0"]
[WhiteElo "2405"]
[BlackElo "2273"]
[TimeControl "180+1"]
[EndTime "9:24:54 PDT"]
[Termination "Massakru won by resignation"]

1. e4 {[%clk 0:02:38]} 1... e5 {[%clk 0:02:57.2]} 2. Nf3 {[%clk 0:02:37.5]} 2...
Nc6 {[%clk 0:02:57.7]} 3. Bb5 {[%clk 0:02:37.4]} 3... Bc5 {[%clk 0:02:57.6]} 4.
O-O {[%clk 0:02:36.2]} 4... Qf6 {[%clk 0:02:53.5]} 5. c3 {[%clk 0:02:33.5]} 5...
a6 {[%clk 0:02:52.1]} 6. Ba4 {[%clk 0:02:32.2]} 6... b5 {[%clk 0:02:51.8]} 7.
Bc2 {[%clk 0:02:29.8]} 7... Nge7 {[%clk 0:02:51.5]} 8. d4 {[%clk 0:02:25.8]}
8... exd4 {[%clk 0:02:50.9]} 9. Bg5 {[%clk 0:02:26.1]} 9... Qg6 {[%clk
0:02:50.8]} 10. e5 {[%clk 0:02:24.2]} 10... dxc3 {[%clk 0:02:50.2]} 11. Bxg6
{[%clk 0:02:23.4]} 11... hxg6 {[%clk 0:02:50.3]} 12. Nxc3 {[%clk 0:02:20.9]}
12... Bb7 {[%clk 0:02:45.6]} 13. Nd5 {[%clk 0:02:16.6]} 13... Nxd5 {[%clk
0:02:43.4]} 14. Qxd5 {[%clk 0:02:16.8]} 14... Bb6 {[%clk 0:02:43.5]} 15. Be3
{[%clk 0:02:11.7]} 15... Na5 {[%clk 0:02:39.4]} 16. Qd1 {[%clk 0:02:11]} 16...
c5 {[%clk 0:02:37.3]} 17. b4 {[%clk 0:02:07.7]} 17... Nc4 {[%clk 0:02:30.7]} 18.
Bxc5 {[%clk 0:02:07.7]} 18... Bc7 {[%clk 0:02:29.9]} 19. a4 {[%clk 0:01:57]}
19... f6 {[%clk 0:02:22.2]} 20. axb5 {[%clk 0:01:50.8]} 20... axb5 {[%clk
0:02:20.7]} 21. Rxa8+ {[%clk 0:01:49.3]} 21... Bxa8 {[%clk 0:02:21.6]} 22. Re1
{[%clk 0:01:42.3]} 22... Kf7 {[%clk 0:02:18]} 23. Qxd7+ {[%clk 0:01:41]} 1-0

[Event "Early-Titled-Tuesday-Blitz-March-19-2024"]
[Site "Chess.com"]
[Date "2024.03.19"]
[Round "8"]
[White "geminithegreat"]
[Black "dianamirza"]
[Result "1-0"]
[WhiteElo "2217"]
[BlackElo "1983"]
[TimeControl "180+1"]
[EndTime "9:25:04 PDT"]
[Termination "geminithegreat won by resignation"]

1. d4 {[%clk 0:02:54.3]} 1... Nf6 {[%clk 0:02:54.5]} 2. g3 {[%clk 0:02:54.2]}
2... g6 {[%clk 0:02:49.3]} 3. Bg2 {[%clk 0:02:54.7]} 3... Bg7 {[%clk 0:02:50.2]}
4. Nf3 {[%clk 0:02:55.1]} 4... d6 {[%clk 0:02:51.1]} 5. O-O {[%clk 0:02:55.4]}
5... O-O {[%clk 0:02:52]} 6. c4 {[%clk 0:02:55.8]} 6... c5 {[%clk 0:02:52.7]} 7.
Nc3 {[%clk 0:02:55.8]} 7... cxd4 {[%clk 0:02:53.3]} 8. Nxd4 {[%clk 0:02:56.7]}
8... a6 {[%clk 0:02:52.1]} 9. e4 {[%clk 0:02:54.5]} 9... Qc7 {[%clk 0:02:52.7]}
10. b3 {[%clk 0:02:52.8]} 10... Nc6 {[%clk 0:02:53.3]} 11. Nxc6 {[%clk
0:02:39.4]} 11... bxc6 {[%clk 0:02:53.1]} 12. Bb2 {[%clk 0:02:32.8]} 12... Bb7
{[%clk 0:02:48.1]} 13. Rc1 {[%clk 0:02:31.8]} 13... a5 {[%clk 0:02:35.9]} 14.
Na4 {[%clk 0:02:27.8]} 14... c5 {[%clk 0:02:35]} 15. Re1 {[%clk 0:02:24]} 15...
Bc6 {[%clk 0:02:32.5]} 16. e5 {[%clk 0:02:14.5]} 16... dxe5 {[%clk 0:02:16]} 17.
Bxe5 {[%clk 0:02:13.1]} 17... Qd7 {[%clk 0:01:57.4]} 18. Qxd7 {[%clk 0:02:06.5]}
18... Bxd7 {[%clk 0:01:58]} 19. Bxa8 {[%clk 0:02:01.1]} 19... Rxa8 {[%clk
0:01:58.9]} 20. Nb6 {[%clk 0:01:53.8]} 20... Rb8 {[%clk 0:01:54.3]} 21. Bxb8
{[%clk 0:01:52.6]} 1-0

[Event "Early-Titled-Tuesday-Blitz-March-19-2024"]
[Site "Chess.com"]
[Date "2024.03.19"]
[Round "8"]
[White "Happy1712Drummer"]
[Black "Dacean99"]
[Result "1/2-1/2"]
[WhiteElo "2464"]
[BlackElo "2635"]
[TimeControl "180+1"]
[EndTime "9:25:14 PDT"]
[Termination "Game drawn by repetition"]

1. e4 {[%clk 0:03:00.9]} 1... c5 {[%clk 0:02:59.9]} 2. Nf3 {[%clk 0:03:01]} 2...
d6 {[%clk 0:03:00.4]} 3. Bb5+ {[%clk 0:03:00.8]} 3... Nd7 {[%clk 0:02:59.9]} 4.
O-O {[%clk 0:02:59.7]} 4... a6 {[%clk 0:02:58.9]} 5. Bxd7+ {[%clk 0:02:59.9]}
5... Bxd7 {[%clk 0:02:58.9]} 6. c3 {[%clk 0:03:00.5]} 6... Nf6 {[%clk 0:02:58]}
7. Re1 {[%clk 0:03:00.9]} 7... g6 {[%clk 0:02:57]} 8. d4 {[%clk 0:03:00.6]} 8...
cxd4 {[%clk 0:02:52.9]} 9. cxd4 {[%clk 0:03:01.5]} 9... Bg7 {[%clk 0:02:52.7]}
10. Nc3 {[%clk 0:03:00.2]} 10... O-O {[%clk 0:02:52.5]} 11. e5 {[%clk
0:02:55.2]} 11... Ne8 {[%clk 0:02:52.7]} 12. Bf4 {[%clk 0:02:53.5]} 12... Rc8
{[%clk 0:02:51.2]} 13. exd6 {[%clk 0:02:31.9]} 13... Nxd6 {[%clk 0:02:52.1]} 14.
Nd5 {[%clk 0:02:32.2]} 14... Be6 {[%clk 0:02:33.6]} 15. Nxe7+ {[%clk 0:02:28.9]}
15... Qxe7 {[%clk 0:02:33.3]} 16. d5 {[%clk 0:02:29.6]} 16... Rc4 {[%clk
0:02:17.7]} 17. Bxd6 {[%clk 0:02:04]} 17... Qxd6 {[%clk 0:02:18.6]} 18. dxe6
{[%clk 0:02:03.4]} 18... Qxd1 {[%clk 0:02:15.4]} 19. Raxd1 {[%clk 0:01:55.6]}
19... fxe6 {[%clk 0:02:14]} 20. b3 {[%clk 0:01:54.9]} 20... Rc6 {[%clk
0:02:12.8]} 21. Rd7 {[%clk 0:01:48.7]} 21... Rf7 {[%clk 0:02:12.1]} 22. Rd8+
{[%clk 0:01:31.6]} 22... Rf8 {[%clk 0:02:11.6]} 23. Rd7 {[%clk 0:01:31.7]} 23...
Rf7 {[%clk 0:02:11.2]} 24. Rd8+ {[%clk 0:01:31.9]} 24... Rf8 {[%clk 0:02:09]}
25. Rd7 {[%clk 0:01:32.3]} 1/2-1/2

[Event "Early-Titled-Tuesday-Blitz-March-19-2024"]
[Site "Chess.com"]
[Date "2024.03.19"]
[Round "8"]
[White "FormerProdigy"]
[Black "js20000"]
[Result "1-0"]
[WhiteElo "2954"]
[BlackElo "2795"]
[TimeControl "180+1"]
[EndTime "9:25:19 PDT"]
[Termination "FormerProdigy won by resignation"]

1. d4 {[%clk 0:03:00.9]} 1... d5 {[%clk 0:02:58.9]} 2. c4 {[%clk 0:03:00.9]}
2... c6 {[%clk 0:02:56.5]} 3. e3 {[%clk 0:03:00.1]} 3... Nf6 {[%clk 0:02:55.9]}
4. Nc3 {[%clk 0:03:00.7]} 4... a6 {[%clk 0:02:55.2]} 5. Nf3 {[%clk 0:03:00.3]}
5... Bf5 {[%clk 0:02:54.7]} 6. Ne5 {[%clk 0:03:00.2]} 6... Nbd7 {[%clk
0:02:53.8]} 7. Qb3 {[%clk 0:03:00.2]} 7... Qc7 {[%clk 0:02:51.2]} 8. cxd5 {[%clk
0:02:54.3]} 8... Nxe5 {[%clk 0:02:48]} 9. dxe5 {[%clk 0:02:55.2]} 9... Nxd5
{[%clk 0:02:47.1]} 10. Nxd5 {[%clk 0:02:56.1]} 10... cxd5 {[%clk 0:02:47.4]} 11.
Bd2 {[%clk 0:02:57]} 11... Qxe5 {[%clk 0:02:17.5]} 12. Rc1 {[%clk 0:02:25.7]}
12... Bd7 {[%clk 0:02:08.8]} 13. Qxb7 {[%clk 0:02:16.5]} 13... Rb8 {[%clk
0:02:07.3]} 14. Qxa6 {[%clk 0:02:16.6]} 14... Qxb2 {[%clk 0:02:06.5]} 15. Bd3
{[%clk 0:01:51.2]} 15... e6 {[%clk 0:02:04.8]} 16. Ke2 {[%clk 0:01:41.2]} 16...
Bb4 {[%clk 0:01:45.2]} 17. Rc2 {[%clk 0:01:41]} 17... Qxc2 {[%clk 0:01:43.7]}
18. Bxc2 {[%clk 0:01:40.2]} 1-0

[Event "Early-Titled-Tuesday-Blitz-March-19-2024"]
[Site "Chess.com"]
[Date "2024.03.19"]
[Round "8"]
[White "SmirnovAlexandrA"]
[Black "maciek_92"]
[Result "0-1"]
[WhiteElo "2641"]
[BlackElo "2894"]
[TimeControl "180+1"]
[EndTime "9:25:20 PDT"]
[Termination "maciek_92 won by resignation"]

1. e4 {[%clk 0:03:00.6]} 1... c5 {[%clk 0:03:00.2]} 2. Nf3 {[%clk 0:03:00.2]}
2... e6 {[%clk 0:03:00.1]} 3. g3 {[%clk 0:02:59.5]} 3... Nc6 {[%clk 0:02:59.8]}
4. Bg2 {[%clk 0:02:59.5]} 4... Nf6 {[%clk 0:03:00.6]} 5. Nc3 {[%clk 0:02:59.7]}
5... e5 {[%clk 0:03:01.1]} 6. O-O {[%clk 0:02:57.9]} 6... d6 {[%clk 0:03:01.5]}
7. Re1 {[%clk 0:02:55.6]} 7... Be7 {[%clk 0:02:59.6]} 8. h3 {[%clk 0:02:55.3]}
8... h6 {[%clk 0:02:57.8]} 9. Nd5 {[%clk 0:02:52.9]} 9... Be6 {[%clk 0:02:56.7]}
10. Nxe7 {[%clk 0:02:48.5]} 10... Nxe7 {[%clk 0:02:56.5]} 11. c3 {[%clk
0:02:47.7]} 11... Qd7 {[%clk 0:02:57]} 12. Kh2 {[%clk 0:02:46.8]} 12... g5
{[%clk 0:02:49]} 13. Ng1 {[%clk 0:02:32.1]} 13... h5 {[%clk 0:02:32.2]} 14. d4
{[%clk 0:02:31]} 14... h4 {[%clk 0:02:32.5]} 15. g4 {[%clk 0:02:22.9]} 15...
Bxg4 {[%clk 0:02:31.2]} 16. hxg4 {[%clk 0:02:09.7]} 16... Nxg4+ {[%clk
0:02:30.3]} 17. Qxg4 {[%clk 0:02:10.6]} 17... Qxg4 {[%clk 0:02:30.9]} 18. Bh3
{[%clk 0:02:10.4]} 18... Qh5 {[%clk 0:02:30.3]} 19. f3 {[%clk 0:02:10.2]} 19...
exd4 {[%clk 0:02:23.1]} 20. cxd4 {[%clk 0:02:11.1]} 20... Nc6 {[%clk 0:02:23.8]}
21. dxc5 {[%clk 0:02:01.6]} 21... dxc5 {[%clk 0:02:24.7]} 22. Be3 {[%clk
0:01:58.8]} 22... Ne5 {[%clk 0:02:23]} 23. Rf1 {[%clk 0:01:49.3]} 23... g4
{[%clk 0:02:23.2]} 24. fxg4 {[%clk 0:01:45.4]} 24... Nxg4+ {[%clk 0:02:24.1]}
25. Bxg4 {[%clk 0:01:46]} 25... Qxg4 {[%clk 0:02:24.9]} 26. Bf4 {[%clk
0:01:42.2]} 26... O-O-O {[%clk 0:02:22.8]} 27. Rac1 {[%clk 0:01:36.4]} 27... b6
{[%clk 0:02:23.3]} 28. b4 {[%clk 0:01:36.2]} 28... Rhg8 {[%clk 0:02:23.3]} 29.
Rf2 {[%clk 0:01:31.5]} 29... Rd1 {[%clk 0:02:23.8]} 0-1

[Event "Early-Titled-Tuesday-Blitz-March-19-2024"]
[Site "Chess.com"]
[Date "2024.03.19"]
[Round "8"]
[White "chess94cu"]
[Black "superchess02"]
[Result "0-1"]
[WhiteElo "2639"]
[BlackElo "2828"]
[TimeControl "180+1"]
[EndTime "9:25:25 PDT"]
[Termination "superchess02 won by resignation"]

1. d4 {[%clk 0:03:00.9]} 1... Nf6 {[%clk 0:03:00]} 2. c4 {[%clk 0:03:00.5]} 2...
g6 {[%clk 0:02:59.1]} 3. Nc3 {[%clk 0:03:00.1]} 3... Bg7 {[%clk 0:02:59.8]} 4.
e4 {[%clk 0:03:00.3]} 4... d6 {[%clk 0:02:59.6]} 5. Be2 {[%clk 0:03:00.8]} 5...
O-O {[%clk 0:03:00.2]} 6. Bg5 {[%clk 0:03:01.4]} 6... c5 {[%clk 0:02:59.7]} 7.
d5 {[%clk 0:03:01.3]} 7... b5 {[%clk 0:02:58.2]} 8. cxb5 {[%clk 0:03:02.2]} 8...
a6 {[%clk 0:02:58.6]} 9. a4 {[%clk 0:03:01.7]} 9... e6 {[%clk 0:02:53]} 10. Nf3
{[%clk 0:02:55.3]} 10... h6 {[%clk 0:02:53.1]} 11. Bf4 {[%clk 0:02:49]} 11...
exd5 {[%clk 0:02:52.7]} 12. exd5 {[%clk 0:02:48.4]} 12... g5 {[%clk 0:02:48.5]}
13. Bg3 {[%clk 0:02:38]} 13... Nh5 {[%clk 0:02:48.7]} 14. Nd2 {[%clk 0:02:28.2]}
14... Nxg3 {[%clk 0:02:48.2]} 15. hxg3 {[%clk 0:02:29.1]} 15... Nd7 {[%clk
0:02:44.6]} 16. O-O {[%clk 0:02:18.9]} 16... f5 {[%clk 0:02:35.6]} 17. Qc2
{[%clk 0:01:58.8]} 17... Ne5 {[%clk 0:02:29.3]} 18. Nc4 {[%clk 0:01:39.1]} 18...
Nxc4 {[%clk 0:02:24.1]} 19. Bxc4 {[%clk 0:01:40]} 19... f4 {[%clk 0:02:25]} 20.
gxf4 {[%clk 0:01:38.6]} 20... gxf4 {[%clk 0:02:25.9]} 21. Be2 {[%clk 0:01:39]}
21... f3 {[%clk 0:02:25.7]} 22. Bd3 {[%clk 0:01:26.8]} 22... fxg2 {[%clk
0:02:20.5]} 23. Rfe1 {[%clk 0:01:23.1]} 23... Qh4 {[%clk 0:02:18.9]} 24. Kxg2
{[%clk 0:01:21.6]} 24... Bh3+ {[%clk 0:02:18.5]} 0-1